[Event "*** MasterClass Titled Tuesday Blitz"]
[Site "Chess.com"]
[Date "2017.11.07"]
[Round "8"]
[White "VladDobrov"]
[Black "mikhaillushenkov"]
[Result "1-0"]
[WhiteElo "2651"]
[BlackElo "2502"]
[TimeControl "180+2"]
[EndTime "15:56:20 PST"]
[Termination "VladDobrov won by resignation"]

1. d4 {[%clk 0:03:01.9]} 1... Nf6 {[%clk 0:02:28]} 2. c4 {[%clk 0:02:29.3]} 2...
e6 {[%clk 0:02:19.1]} 3. Nf3 {[%clk 0:02:29.8]} 3... c5 {[%clk 0:02:13.7]} 4. d5
{[%clk 0:02:29.8]} 4... exd5 {[%clk 0:02:15.2]} 5. cxd5 {[%clk 0:02:30.9]} 5...
Bd6 {[%clk 0:02:14.8]} 6. Nc3 {[%clk 0:02:30.7]} 6... a6 {[%clk 0:02:11.3]} 7.
Bg5 {[%clk 0:02:27.6]} 7... O-O {[%clk 0:02:05.3]} 8. e3 {[%clk 0:02:27.1]} 8...
Re8 {[%clk 0:02:02.2]} 9. a4 {[%clk 0:02:08.5]} 9... Qe7 {[%clk 0:02:01.3]} 10.
Bd3 {[%clk 0:02:02.4]} 10... Bc7 {[%clk 0:01:59]} 11. O-O {[%clk 0:02:01.7]}
11... d6 {[%clk 0:01:54.5]} 12. Nd2 {[%clk 0:02:00.6]} 12... Nbd7 {[%clk
0:01:51]} 13. a5 {[%clk 0:01:47.6]} 13... h6 {[%clk 0:01:47.1]} 14. Bh4 {[%clk
0:01:47.3]} 14... Ne5 {[%clk 0:01:37.7]} 15. Bc2 {[%clk 0:01:30.6]} 15... Ng6
{[%clk 0:01:25.4]} 16. Bg3 {[%clk 0:01:29]} 16... Bg4 {[%clk 0:01:20.6]} 17. Qb1
{[%clk 0:01:26.5]} 17... Nf8 {[%clk 0:01:18.6]} 18. Nc4 {[%clk 0:01:25]} 18...
Nh5 {[%clk 0:01:10.4]} 19. Bf5 {[%clk 0:01:20.9]} 19... Bxf5 {[%clk 0:01:06.5]}
20. Qxf5 {[%clk 0:01:22.8]} 20... Nxg3 {[%clk 0:01:07.3]} 21. hxg3 {[%clk
0:01:24.7]} 21... Nd7 {[%clk 0:01:04.8]} 22. Rfb1 {[%clk 0:01:12.2]} 22... g6
{[%clk 0:01:03.3]} 23. Qd3 {[%clk 0:01:11.6]} 23... h5 {[%clk 0:01:02.7]} 24. b4
{[%clk 0:01:11.7]} 24... cxb4 {[%clk 0:01:02.2]} 25. Rxb4 {[%clk 0:01:11.3]}
25... Nc5 {[%clk 0:01:03.5]} 26. Qd4 {[%clk 0:01:11.3]} 26... Rac8 {[%clk
0:00:49.4]} 27. Rab1 {[%clk 0:01:12.1]} 27... Bb8 {[%clk 0:00:49.2]} 28. Na4
{[%clk 0:01:11.8]} 28... Ba7 {[%clk 0:00:49.2]} 29. Nab6 {[%clk 0:00:53.6]}
29... Rcd8 {[%clk 0:00:45.2]} 30. Rd1 {[%clk 0:00:49.9]} 30... Ne4 {[%clk
0:00:42.7]} 31. Nd2 {[%clk 0:00:46]} 31... Nc5 {[%clk 0:00:38.1]} 32. Nb3 {[%clk
0:00:45]} 32... Ne4 {[%clk 0:00:36.4]} 33. Rc4 {[%clk 0:00:45.9]} 33... f5
{[%clk 0:00:34.8]} 34. Rdc1 {[%clk 0:00:45]} 34... Bb8 {[%clk 0:00:31.5]} 35.
Nd2 {[%clk 0:00:42.2]} 35... Nf6 {[%clk 0:00:29.9]} 36. Nf3 {[%clk 0:00:42.8]}
36... Ng4 {[%clk 0:00:30]} 37. Qf4 {[%clk 0:00:42.5]} 37... Ne5 {[%clk
0:00:29.3]} 38. Nd4 {[%clk 0:00:43.2]} 38... Nxc4 {[%clk 0:00:25.3]} 39. Rxc4
{[%clk 0:00:42.4]} 39... Qf6 {[%clk 0:00:23.9]} 40. Qf3 {[%clk 0:00:30.5]} 40...
Re4 {[%clk 0:00:22.8]} 41. Rc2 {[%clk 0:00:25.6]} 41... Ba7 {[%clk 0:00:22.4]}
42. Ne6 {[%clk 0:00:24.2]} 42... Bxb6 {[%clk 0:00:20.2]} 43. axb6 {[%clk
0:00:26.1]} 43... Re8 {[%clk 0:00:20.4]} 44. Rc7 {[%clk 0:00:25.6]} 44... Re7
{[%clk 0:00:15.1]} 45. Qd1 {[%clk 0:00:26]} 45... R4xe6 {[%clk 0:00:13]} 46.
dxe6 {[%clk 0:00:26.5]} 46... Qxe6 {[%clk 0:00:12]} 47. Qf3 {[%clk 0:00:26.9]}
47... Qf7 {[%clk 0:00:08.5]} 48. Qxb7 {[%clk 0:00:26.5]} 1-0

[Event "*** MasterClass Titled Tuesday Blitz"]
[Site "Chess.com"]
[Date "2017.11.07"]
[Round "8"]
[White "Blitzstream"]
[Black "Alexander_Moskalenko"]
[Result "1-0"]
[WhiteElo "2506"]
[BlackElo "2684"]
[TimeControl "180+2"]
[EndTime "15:56:39 PST"]
[Termination "Blitzstream won on time"]

1. d4 {[%clk 0:03:01.9]} 1... d6 {[%clk 0:02:58.6]} 2. Nf3 {[%clk 0:03:00.8]}
2... g6 {[%clk 0:02:58.9]} 3. h4 {[%clk 0:02:58.5]} 3... Nf6 {[%clk 0:02:59.4]}
4. Nc3 {[%clk 0:02:56.3]} 4... Bg7 {[%clk 0:03:00.5]} 5. e4 {[%clk 0:02:55.8]}
5... Bg4 {[%clk 0:03:01.8]} 6. Qd3 {[%clk 0:02:44.4]} 6... Nc6 {[%clk
0:02:54.4]} 7. d5 {[%clk 0:02:29.2]} 7... Bxf3 {[%clk 0:02:51.4]} 8. dxc6 {[%clk
0:02:23.3]} 8... Bg4 {[%clk 0:02:52.5]} 9. f3 {[%clk 0:02:17.5]} 9... Be6 {[%clk
0:02:48.6]} 10. cxb7 {[%clk 0:02:11.1]} 10... Rb8 {[%clk 0:02:49.8]} 11. Qa6
{[%clk 0:02:12.5]} 11... O-O {[%clk 0:02:47.1]} 12. Qxa7 {[%clk 0:02:11]} 12...
c6 {[%clk 0:02:43.8]} 13. Be3 {[%clk 0:02:09.3]} 13... Qc7 {[%clk 0:01:54.8]}
14. Ba6 {[%clk 0:02:09.7]} 14... Nd7 {[%clk 0:01:56.3]} 15. Bd4 {[%clk
0:01:24.3]} 15... Qa5 {[%clk 0:00:45.2]} 16. Bxg7 {[%clk 0:01:24.2]} 16... Kxg7
{[%clk 0:00:47.1]} 17. Qd4+ {[%clk 0:01:24]} 17... f6 {[%clk 0:00:41.6]} 18. Be2
{[%clk 0:00:48.9]} 18... Rxb7 {[%clk 0:00:42.2]} 19. b3 {[%clk 0:00:50.3]} 19...
Rb4 {[%clk 0:00:43.4]} 20. Qd2 {[%clk 0:00:51]} 20... Qe5 {[%clk 0:00:35.1]} 21.
f4 {[%clk 0:00:38.7]} 21... Qc5 {[%clk 0:00:35.9]} 22. Rd1 {[%clk 0:00:35.9]}
22... Rfb8 {[%clk 0:00:35]} 23. h5 {[%clk 0:00:33.3]} 23... Bg8 {[%clk
0:00:33.9]} 24. Rh3 {[%clk 0:00:27.3]} 24... g5 {[%clk 0:00:25.9]} 25. fxg5
{[%clk 0:00:16.8]} 25... Qxg5 {[%clk 0:00:19.2]} 26. h6+ {[%clk 0:00:14.2]}
26... Kh8 {[%clk 0:00:11.7]} 27. Qxg5 {[%clk 0:00:15.3]} 27... fxg5 {[%clk
0:00:13.6]} 28. Rg3 {[%clk 0:00:16.7]} 28... Nf6 {[%clk 0:00:14.8]} 29. Rxg5
{[%clk 0:00:12.2]} 29... Nxe4 {[%clk 0:00:15.8]} 30. Nxe4 {[%clk 0:00:14.1]}
30... Rxe4 {[%clk 0:00:17]} 31. Kd2 {[%clk 0:00:14.8]} 31... Re6 {[%clk
0:00:17.1]} 32. Rh1 {[%clk 0:00:14.2]} 32... Rf8 {[%clk 0:00:17.8]} 33. Bf3
{[%clk 0:00:12.8]} 33... c5 {[%clk 0:00:13.7]} 34. a4 {[%clk 0:00:13.5]} 34...
Ref6 {[%clk 0:00:08.7]} 35. a5 {[%clk 0:00:14.5]} 35... e5 {[%clk 0:00:10.2]}
36. Bc6 {[%clk 0:00:11.6]} 36... d5 {[%clk 0:00:10.1]} 37. Bb7 {[%clk 0:00:11]}
37... Rf2+ {[%clk 0:00:10.2]} 38. Kc1 {[%clk 0:00:10.3]} 38... Bf7 {[%clk
0:00:08.5]} 39. a6 {[%clk 0:00:09.1]} 39... Bg6 {[%clk 0:00:09.8]} 40. Rxg6
{[%clk 0:00:10]} 40... hxg6 {[%clk 0:00:11.1]} 41. a7 {[%clk 0:00:06.1]} 41...
e4 {[%clk 0:00:10.3]} 42. Bxd5 {[%clk 0:00:06]} 42... e3 {[%clk 0:00:10.9]} 43.
a8=Q {[%clk 0:00:07.2]} 43... Rxa8 {[%clk 0:00:10.8]} 44. Bxa8 {[%clk
0:00:09.1]} 44... e2 {[%clk 0:00:10.9]} 45. Re1 {[%clk 0:00:10.1]} 45... Kh7
{[%clk 0:00:10]} 46. Kd2 {[%clk 0:00:11.1]} 46... Kxh6 {[%clk 0:00:11.9]} 47.
Rxe2 {[%clk 0:00:12.6]} 47... Rf4 {[%clk 0:00:13.6]} 48. Bf3 {[%clk 0:00:14]}
48... c4 {[%clk 0:00:14]} 49. Re4 {[%clk 0:00:15.2]} 49... Rxf3 {[%clk
0:00:13.3]} 50. gxf3 {[%clk 0:00:16]} 50... cxb3 {[%clk 0:00:15.2]} 51. cxb3
{[%clk 0:00:17.6]} 1-0

[Event "*** MasterClass Titled Tuesday Blitz"]
[Site "Chess.com"]
[Date "2017.11.07"]
[Round "8"]
[White "GM_dmitrij"]
[Black "matej2221"]
[Result "0-1"]
[WhiteElo "2614"]
[BlackElo "2111"]
[TimeControl "180+2"]
[EndTime "15:56:59 PST"]
[Termination "matej2221 won by resignation"]

1. e4 {[%clk 0:03:01.9]} 1... e5 {[%clk 0:03:00.8]} 2. Nf3 {[%clk 0:03:01]} 2...
Nc6 {[%clk 0:03:01.8]} 3. Bc4 {[%clk 0:02:58.5]} 3... Bc5 {[%clk 0:03:02.1]} 4.
c3 {[%clk 0:02:59.6]} 4... Nf6 {[%clk 0:03:03.2]} 5. d4 {[%clk 0:03:00.6]} 5...
exd4 {[%clk 0:03:05.1]} 6. e5 {[%clk 0:03:01.8]} 6... d5 {[%clk 0:03:03.6]} 7.
Bb5 {[%clk 0:03:02.9]} 7... Ne4 {[%clk 0:03:03.6]} 8. cxd4 {[%clk 0:03:04.2]}
8... Bb6 {[%clk 0:03:04.7]} 9. Be3 {[%clk 0:03:04.5]} 9... O-O {[%clk
0:03:04.9]} 10. Nc3 {[%clk 0:03:05.3]} 10... Bg4 {[%clk 0:02:58.5]} 11. h3
{[%clk 0:03:05.3]} 11... Bh5 {[%clk 0:02:56.1]} 12. Qc2 {[%clk 0:03:05.8]} 12...
Bg6 {[%clk 0:02:54.4]} 13. Qb3 {[%clk 0:03:06.8]} 13... Ne7 {[%clk 0:02:49.9]}
14. Nh4 {[%clk 0:02:39.7]} 14... c6 {[%clk 0:02:30.2]} 15. Nxg6 {[%clk
0:02:31.1]} 15... hxg6 {[%clk 0:02:20]} 16. Bd3 {[%clk 0:02:32.1]} 16... Nf5
{[%clk 0:02:14.9]} 17. Nxe4 {[%clk 0:01:54.9]} 17... dxe4 {[%clk 0:02:12.1]} 18.
Bxe4 {[%clk 0:01:56.8]} 18... Nxe3 {[%clk 0:02:05.4]} 19. Qxe3 {[%clk 0:01:50]}
19... Bxd4 {[%clk 0:02:04.6]} 20. Qd2 {[%clk 0:01:34.6]} 20... Bxe5 {[%clk
0:02:00.8]} 21. Qxd8 {[%clk 0:01:16.8]} 21... Raxd8 {[%clk 0:02:02.7]} 22. O-O
{[%clk 0:01:10.8]} 22... Rd2 {[%clk 0:01:58.2]} 23. Rad1 {[%clk 0:01:05.1]}
23... Rfd8 {[%clk 0:01:57.2]} 24. Rxd2 {[%clk 0:00:52.7]} 24... Rxd2 {[%clk
0:01:59.1]} 25. b3 {[%clk 0:00:54]} 25... Rxa2 {[%clk 0:01:58.2]} 26. Rd1 {[%clk
0:00:55.3]} 26... Rb2 {[%clk 0:01:19.4]} 27. Rb1 {[%clk 0:00:55.5]} 27... Rxb1+
{[%clk 0:01:09]} 28. Bxb1 {[%clk 0:00:57.4]} 28... g5 {[%clk 0:01:06.4]} 29. Kf1
{[%clk 0:00:58]} 29... f6 {[%clk 0:01:05.3]} 30. Bf5 {[%clk 0:00:55.9]} 30...
Kf7 {[%clk 0:01:05.6]} 31. Bc8 {[%clk 0:00:41.9]} 31... b6 {[%clk 0:01:06.2]}
32. Bb7 {[%clk 0:00:37.4]} 32... Ke7 {[%clk 0:00:24.6]} 33. Bxc6 {[%clk
0:00:37.8]} 33... Kd6 {[%clk 0:00:26.5]} 34. Be8 {[%clk 0:00:39]} 34... Kc5
{[%clk 0:00:27]} 35. Ke2 {[%clk 0:00:40.4]} 35... Kb4 {[%clk 0:00:28]} 36. Bf7
{[%clk 0:00:39.7]} 36... Kc3 {[%clk 0:00:27.4]} 37. Kd1 {[%clk 0:00:35.4]} 37...
Bd4 {[%clk 0:00:20.8]} 38. f3 {[%clk 0:00:36.1]} 38... Be3 {[%clk 0:00:21.2]}
39. g3 {[%clk 0:00:27.3]} 39... Bf2 {[%clk 0:00:20.1]} 40. g4 {[%clk 0:00:24.2]}
40... Be3 {[%clk 0:00:20.8]} 41. Ke2 {[%clk 0:00:25.4]} 41... Bf4 {[%clk
0:00:21.6]} 42. Kd1 {[%clk 0:00:21.2]} 42... b5 {[%clk 0:00:21.3]} 43. Ke2
{[%clk 0:00:16.1]} 43... a5 {[%clk 0:00:20.7]} 44. Be8 {[%clk 0:00:10.3]} 44...
Kxb3 {[%clk 0:00:10.2]} 45. Bxb5 {[%clk 0:00:11.5]} 45... a4 {[%clk 0:00:09.8]}
46. Kd3 {[%clk 0:00:13.1]} 46... a3 {[%clk 0:00:10.1]} 47. Bc4+ {[%clk
0:00:14.6]} 47... Kb2 {[%clk 0:00:10.6]} 48. Ke4 {[%clk 0:00:16.2]} 48... a2
{[%clk 0:00:09.8]} 49. Bxa2 {[%clk 0:00:17.6]} 49... Kxa2 {[%clk 0:00:11.7]} 50.
Kf5 {[%clk 0:00:19.2]} 50... Kb3 {[%clk 0:00:10.8]} 51. Kg6 {[%clk 0:00:21.1]}
51... Kc4 {[%clk 0:00:11.4]} 52. Kxg7 {[%clk 0:00:23]} 52... Be5 {[%clk
0:00:12.6]} 53. Kg6 {[%clk 0:00:24.3]} 53... Kd4 {[%clk 0:00:13.1]} 54. Kh5
{[%clk 0:00:25.6]} 54... Ke3 {[%clk 0:00:13.7]} 55. h4 {[%clk 0:00:26]} 55...
gxh4 {[%clk 0:00:10]} 56. Kxh4 {[%clk 0:00:27.9]} 56... Kxf3 {[%clk 0:00:08.2]}
57. g5 {[%clk 0:00:25.9]} 57... f5 {[%clk 0:00:08.2]} 58. g6 {[%clk 0:00:26.8]}
58... f4 {[%clk 0:00:09.3]} 59. Kg5 {[%clk 0:00:28.2]} 59... Kg3 {[%clk
0:00:09]} 60. g7 {[%clk 0:00:29.2]} 60... Bxg7 {[%clk 0:00:09.5]} 0-1

[Event "*** MasterClass Titled Tuesday Blitz"]
[Site "Chess.com"]
[Date "2017.11.07"]
[Round "8"]
[White "timator"]
[Black "Hanging_pointer"]
[Result "1/2-1/2"]
[WhiteElo "2420"]
[BlackElo "2343"]
[TimeControl "180+2"]
[EndTime "15:57:04 PST"]
[Termination "Game drawn by agreement"]

1. Nf3 {[%clk 0:03:01.9]} 1... c5 {[%clk 0:02:51.8]} 2. g3 {[%clk 0:03:03.8]}
2... b6 {[%clk 0:02:51.5]} 3. Bg2 {[%clk 0:03:04.8]} 3... Bb7 {[%clk 0:02:53.4]}
4. O-O {[%clk 0:03:06.5]} 4... g6 {[%clk 0:02:53.6]} 5. c4 {[%clk 0:02:59.3]}
5... Bg7 {[%clk 0:02:54.3]} 6. Nc3 {[%clk 0:03:00.8]} 6... Nf6 {[%clk
0:02:52.6]} 7. b3 {[%clk 0:03:01]} 7... O-O {[%clk 0:02:52.5]} 8. Bb2 {[%clk
0:03:02.1]} 8... d5 {[%clk 0:02:53.5]} 9. d3 {[%clk 0:02:54.9]} 9... Nc6 {[%clk
0:02:49.3]} 10. e3 {[%clk 0:02:55.9]} 10... Rc8 {[%clk 0:02:38.9]} 11. Qe2
{[%clk 0:02:51]} 11... e5 {[%clk 0:02:25.6]} 12. cxd5 {[%clk 0:02:18.1]} 12...
Nxd5 {[%clk 0:02:27.5]} 13. Nxd5 {[%clk 0:02:19.2]} 13... Qxd5 {[%clk
0:02:27.7]} 14. Nxe5 {[%clk 0:02:20]} 14... Qxg2+ {[%clk 0:02:27.4]} 15. Kxg2
{[%clk 0:02:21]} 15... Nd4+ {[%clk 0:02:27.8]} 16. f3 {[%clk 0:01:04.3]} 16...
Nxe2 {[%clk 0:02:22.4]} 17. Kf2 {[%clk 0:01:01.6]} 17... Rfe8 {[%clk 0:01:06.9]}
18. f4 {[%clk 0:01:01.3]} 18... Bxe5 {[%clk 0:00:21.9]} 19. fxe5 {[%clk
0:01:02.2]} 19... Nd4 {[%clk 0:00:14.6]} 20. exd4 {[%clk 0:01:02.5]} 20... cxd4
{[%clk 0:00:16.5]} 21. Rac1 {[%clk 0:01:01.3]} 21... Rcd8 {[%clk 0:00:13.1]} 22.
Rc7 {[%clk 0:00:56.1]} 22... Bd5 {[%clk 0:00:08.2]} 23. Re1 {[%clk 0:00:49.5]}
23... Be6 {[%clk 0:00:07.6]} 24. Re4 {[%clk 0:00:41.7]} 24... Rc8 {[%clk
0:00:05.7]} 25. Rxc8 {[%clk 0:00:27.5]} 25... Rxc8 {[%clk 0:00:07.5]} 26. Bxd4
{[%clk 0:00:29.2]} 26... Bf5 {[%clk 0:00:05.9]} 27. Re2 {[%clk 0:00:20.8]} 27...
Bxd3 {[%clk 0:00:05.4]} 28. Rd2 {[%clk 0:00:22.2]} 28... Bf5 {[%clk 0:00:05.8]}
29. a4 {[%clk 0:00:19.1]} 29... Be6 {[%clk 0:00:06.3]} 30. Rb2 {[%clk
0:00:17.9]} 30... Kf8 {[%clk 0:00:03.1]} 31. Be3 {[%clk 0:00:18.2]} 31... Ke8
{[%clk 0:00:04]} 32. b4 {[%clk 0:00:19.4]} 32... Kd7 {[%clk 0:00:04.9]} 33. a5
{[%clk 0:00:20.7]} 33... bxa5 {[%clk 0:00:03.4]} 34. bxa5 {[%clk 0:00:21.9]}
34... a6 {[%clk 0:00:05.3]} 35. Rb7+ {[%clk 0:00:22.4]} 35... Kc6 {[%clk
0:00:05.7]} 36. Rb6+ {[%clk 0:00:23.5]} 36... Kd5 {[%clk 0:00:07]} 37. Rxa6
{[%clk 0:00:24.1]} 37... Ke4 {[%clk 0:00:07.7]} 38. Rd6 {[%clk 0:00:19.4]} 38...
Rc2+ {[%clk 0:00:07]} 39. Rd2 {[%clk 0:00:20.6]} 39... Rxd2+ {[%clk 0:00:07.4]}
40. Bxd2 {[%clk 0:00:21.7]} 40... Kxe5 {[%clk 0:00:08.4]} 41. Ke3 {[%clk
0:00:22.8]} 41... Bc4 {[%clk 0:00:09]} 42. Bc3+ {[%clk 0:00:22.8]} 42... Ke6
{[%clk 0:00:09.9]} 43. Kd4 {[%clk 0:00:23]} 43... Bf1 {[%clk 0:00:08.9]} 44. Ke4
{[%clk 0:00:20.7]} 44... f5+ {[%clk 0:00:08.2]} 45. Kf4 {[%clk 0:00:22]} 45...
Be2 {[%clk 0:00:05.4]} 46. h4 {[%clk 0:00:23.1]} 46... Kd5 {[%clk 0:00:06.1]}
47. Bb4 {[%clk 0:00:21.3]} 47... Kc6 {[%clk 0:00:06.7]} 48. Bd2 {[%clk
0:00:19.9]} 48... Kb7 {[%clk 0:00:07.6]} 49. Be3 {[%clk 0:00:20.3]} 49... Ka6
{[%clk 0:00:08.5]} 50. Bb6 {[%clk 0:00:21.5]} 50... Kb7 {[%clk 0:00:09.5]} 51.
Kg5 {[%clk 0:00:22.6]} 51... Ka6 {[%clk 0:00:09.5]} 52. Kh6 {[%clk 0:00:24]}
52... Kb7 {[%clk 0:00:10]} 53. Kxh7 {[%clk 0:00:23.9]} 53... Bh5 {[%clk
0:00:10.9]} 54. Kh6 {[%clk 0:00:25.2]} 54... Ka6 {[%clk 0:00:12]} 55. Kg5 {[%clk
0:00:24.3]} 55... Kb7 {[%clk 0:00:13]} 56. Kf6 {[%clk 0:00:23.7]} 56... Ka6
{[%clk 0:00:13.9]} 1/2-1/2

[Event "*** MasterClass Titled Tuesday Blitz"]
[Site "Chess.com"]
[Date "2017.11.07"]
[Round "8"]
[White "GameOverBro"]
[Black "TijanaBlagojevic"]
[Result "1/2-1/2"]
[WhiteElo "2331"]
[BlackElo "2273"]
[TimeControl "180+2"]
[EndTime "15:57:13 PST"]
[Termination "Game drawn by repetition"]

1. e4 {[%clk 0:03:01.9]} 1... e5 {[%clk 0:03:00.9]} 2. Nf3 {[%clk 0:03:02.5]}
2... Nc6 {[%clk 0:03:02.2]} 3. Bb5 {[%clk 0:03:03.8]} 3... Nf6 {[%clk 0:03:03]}
4. d4 {[%clk 0:03:03.7]} 4... Nxe4 {[%clk 0:03:02.4]} 5. Qe2 {[%clk 0:03:03.7]}
5... Nd6 {[%clk 0:03:00.9]} 6. Bxc6 {[%clk 0:02:54]} 6... dxc6 {[%clk
0:03:00.9]} 7. dxe5 {[%clk 0:02:52.5]} 7... Nf5 {[%clk 0:03:01.7]} 8. O-O {[%clk
0:02:48.9]} 8... Nd4 {[%clk 0:03:02.8]} 9. Nxd4 {[%clk 0:02:47.5]} 9... Qxd4
{[%clk 0:03:04.7]} 10. Rd1 {[%clk 0:02:47.7]} 10... Bg4 {[%clk 0:03:05.6]} 11.
Rxd4 {[%clk 0:02:43.9]} 11... Bxe2 {[%clk 0:03:06.3]} 12. Nc3 {[%clk 0:02:42.6]}
12... Bh5 {[%clk 0:03:03.9]} 13. Bg5 {[%clk 0:02:41.8]} 13... h6 {[%clk
0:03:01.2]} 14. Bh4 {[%clk 0:02:40.4]} 14... Be7 {[%clk 0:02:45.3]} 15. Bxe7
{[%clk 0:02:34.5]} 15... Kxe7 {[%clk 0:02:47.2]} 16. Re1 {[%clk 0:01:36.2]}
16... Rad8 {[%clk 0:02:45.1]} 17. Rb4 {[%clk 0:01:30.6]} 17... b6 {[%clk
0:02:39.8]} 18. Ne4 {[%clk 0:01:19]} 18... Rd5 {[%clk 0:02:24.2]} 19. f4 {[%clk
0:01:16.2]} 19... Rhd8 {[%clk 0:02:19.9]} 20. Ng3 {[%clk 0:01:15.7]} 20... Bg6
{[%clk 0:02:07]} 21. f5 {[%clk 0:01:15.1]} 21... Bh7 {[%clk 0:02:08.2]} 22. Rbe4
{[%clk 0:01:04.8]} 22... Rd2 {[%clk 0:02:02.4]} 23. Rc4 {[%clk 0:00:30.6]} 23...
c5 {[%clk 0:02:00.3]} 24. a4 {[%clk 0:00:25.4]} 24... R8d4 {[%clk 0:01:59.4]}
25. Re4 {[%clk 0:00:21.2]} 25... Rxe4 {[%clk 0:01:54.3]} 26. Rxe4 {[%clk
0:00:19.7]} 26... Rxc2 {[%clk 0:01:53.1]} 27. b4 {[%clk 0:00:19.6]} 27... cxb4
{[%clk 0:01:50.8]} 28. Rxb4 {[%clk 0:00:21.5]} 28... c5 {[%clk 0:01:48.3]} 29.
Rb5 {[%clk 0:00:20.5]} 29... Ra2 {[%clk 0:01:49.2]} 30. Rb1 {[%clk 0:00:11.8]}
30... Rxa4 {[%clk 0:01:49.2]} 31. Rf1 {[%clk 0:00:13.2]} 31... Ra2 {[%clk
0:01:46.9]} 32. f6+ {[%clk 0:00:12.2]} 32... gxf6 {[%clk 0:01:48]} 33. exf6+
{[%clk 0:00:14.1]} 33... Ke6 {[%clk 0:01:49.1]} 34. Nh5 {[%clk 0:00:15]} 34...
Be4 {[%clk 0:01:47.5]} 35. Re1 {[%clk 0:00:16.3]} 35... Kd5 {[%clk 0:01:42.2]}
36. Nf4+ {[%clk 0:00:16.8]} 36... Kd4 {[%clk 0:01:37.9]} 37. Ne2+ {[%clk
0:00:12.7]} 37... Kd5 {[%clk 0:01:31.7]} 38. Nc3+ {[%clk 0:00:13.2]} 38... Kd4
{[%clk 0:01:32.2]} 39. Nxa2 {[%clk 0:00:13.6]} 39... c4 {[%clk 0:01:33.6]} 40.
Kf2 {[%clk 0:00:07.7]} 40... b5 {[%clk 0:01:32.5]} 41. g4 {[%clk 0:00:06.6]}
41... a5 {[%clk 0:01:33.6]} 42. h4 {[%clk 0:00:07.5]} 42... b4 {[%clk
0:01:34.7]} 43. g5 {[%clk 0:00:08.1]} 43... hxg5 {[%clk 0:01:35.6]} 44. hxg5
{[%clk 0:00:08.7]} 44... Bg6 {[%clk 0:01:36.9]} 45. Nc1 {[%clk 0:00:05.7]} 45...
a4 {[%clk 0:01:32.9]} 46. Re8 {[%clk 0:00:03.6]} 46... b3 {[%clk 0:01:31.7]} 47.
Rd8+ {[%clk 0:00:04.8]} 47... Kc3 {[%clk 0:01:31.3]} 48. Ne2+ {[%clk 0:00:05.8]}
48... Kb2 {[%clk 0:01:29.4]} 49. Rg8 {[%clk 0:00:06.1]} 49... Bh5 {[%clk
0:01:29]} 50. g6 {[%clk 0:00:04.9]} 50... a3 {[%clk 0:01:21.8]} 51. g7 {[%clk
0:00:04.3]} 51... Bg6 {[%clk 0:01:09.9]} 52. Rh8 {[%clk 0:00:04.7]} 52... a2
{[%clk 0:01:09.4]} 53. g8=Q {[%clk 0:00:05.9]} 53... a1=Q {[%clk 0:01:09.5]} 54.
Qe8 {[%clk 0:00:04]} 54... Qa7+ {[%clk 0:01:07.8]} 55. Ke1 {[%clk 0:00:03.8]}
55... Qa5+ {[%clk 0:01:07.3]} 56. Kf1 {[%clk 0:00:04.5]} 56... Qf5+ {[%clk
0:01:08]} 57. Ke1 {[%clk 0:00:05.2]} 57... Qb1+ {[%clk 0:01:07.5]} 58. Kf2
{[%clk 0:00:06.3]} 58... Qf5+ {[%clk 0:01:07.8]} 59. Kg2 {[%clk 0:00:07.4]}
59... Qg5+ {[%clk 0:01:08.7]} 60. Ng3 {[%clk 0:00:07.2]} 60... c3 {[%clk
0:01:07.7]} 61. Qe2+ {[%clk 0:00:06.8]} 61... c2 {[%clk 0:01:08.3]} 62. Rc8
{[%clk 0:00:07]} 62... Qd5+ {[%clk 0:01:08.7]} 63. Kh2 {[%clk 0:00:07.1]} 63...
Qd1 {[%clk 0:01:09.1]} 64. Qe5+ {[%clk 0:00:07.6]} 64... Kb1 {[%clk 0:01:10]}
65. Ra8 {[%clk 0:00:06]} 65... Qd2+ {[%clk 0:01:09.7]} 66. Kh3 {[%clk
0:00:07.2]} 66... Qh6+ {[%clk 0:01:10]} 67. Kg2 {[%clk 0:00:07.7]} 67... Qd2+
{[%clk 0:01:10.3]} 68. Kh3 {[%clk 0:00:08.6]} 68... Qh6+ {[%clk 0:01:02.4]} 69.
Kg2 {[%clk 0:00:09.3]} 69... Qd2+ {[%clk 0:00:53.5]} 70. Kh3 {[%clk 0:00:10.1]}
1/2-1/2